[Event "36th Balaton Open A 2018"]
[Site "Balatonlelle"]
[Date "2018.06.13"]
[Round "2.8"]
[White "Hogea, Calin"]
[Black "Shatkovskaia, Elizaveta"]
[Result "0-1"]
[ECO "A21"]
[WhiteElo "2112"]
[BlackElo "1287"]
[Annotator "ChessBase"]
[PlyCount "99"]
[EventDate "2018.06.12"]
[EventType "swiss"]
[EventCountry "HUN"]
[SourceTitle "playchess.com"]
[Source "ChessBase"]
[SourceQuality "1"]
[TimeControl "40/5400+30:1800+30"]

1. c4 {[%emt 0:03:38]} e5 {[%emt 0:00:37]} 2. Nc3 {[%emt 0:00:05]} f5 {[%emt 0:00:11]} 3. g3 {[%emt 0:02:46]} Nf6 {[%emt 0:00:23]} 4. Bg2 {[%emt 0:00:07]} Bc5 {[%emt 0:00:31]} 5. d3 {[%emt 0:03:09]} d6 {[%emt 0:00:15]} 6. Nf3 {[%emt 0:00:08]} O-O {[%emt 0:00:28]} 7. O-O {[%emt 0:00:12]} c6 {[%emt 0:06:37]} 8. d4 {[%emt 0:04:44]} exd4 {[%emt 0:00:48]} 9. Nxd4 {[%emt 0:00:05]} Re8 {[%emt 0:25:16]} 10. Qd3 {[%emt 0:06:45]} Bxd4 {[%emt 0:01:21]} 11. Qxd4 {[%emt 0:01:08]} c5 {[%emt 0:01:03]} 12. Qd3 {[%emt 0:03:52]} Qd7 {[%emt 0:06:53]} 13. Bg5 {[%emt 0:07:15]} Rf8 {[%emt 0:02:56]} 14. Rad1 {[%emt 0:01:11]} Ne8 {[%emt 0:01:56]} 15. Nb5 {[%emt 0:07:06]} Nc6 {[%emt 0:11:01]} 16. Nxd6 {[%emt 0:08:52]} Ne5 {[%emt 0:01:18]} 17. Qd5+ {[%emt 0:01:27]} Nf7 {[%emt 0:01:50]} 18. Nxf7 {[%emt 0:02:10]} Qxf7 {[%emt 0:00:20]} 19. Qxf7+ {[%emt 0:01:56]} Kxf7 {[%emt 0:00:45]} 20. Rd8 {[%emt 0:03:22]} Nc7 {[%emt 0:01:44]} 21. Rd6 {[%emt 0:04:45]} Rb8 {[%emt 0:00:43]} 22. Bf4 {[%emt 0:02:05]} Ne6 {[%emt 0:06:53]} 23. Bd5 {[%emt 0:04:12]} Ke7 {[%emt 0:02:45]} 24. Be5 {[%emt 0:01:34]} g6 {[%emt 0:02:49]} 25. Rd1 {[%emt 0:01:01]} Nd4 {[%emt 0:01:49]} 26. e3 {[%emt 0:03:17]} Ne6 {[%emt 0:02:41]} 27. h3 {[%emt 0:02:47]} Nc7 {[%emt 0:05:58]} 28. Bg2 {[%emt 0:00:50]} Ne6 {[%emt 0:00:19]} 29. f4 {[%emt 0:00:30]} b5 {[%emt 0:02:33]} 30. Rc6 {[%emt 0:02:36]} Bb7 {[%emt 0:03:17]} 31. Bxb8 {[%emt 0:02:04]} Bxc6 {[%emt 0:01:14]} 32. Bd6+ {[%emt 0:00:07]} Kf7 {[%emt 0:02:11]} 33. Bxc6 {[%emt 0:02:31]} Rd8 {[%emt 0:00:12]} 34. Bf3 {[%emt 0:01:43]} bxc4 {[%emt 0:01:12]} 35. Be5 {[%emt 0:01:15]} Rxd1+ {[%emt 0:00:11]} 36. Bxd1 {[%emt 0:00:06]} Nd8 {[%emt 0:01:28]} 37. Be2 {[%emt 0:03:56]} Ke7 {[%emt 0:01:24]} 38. Bxc4 {[%emt 0:03:11]} Nc6 {[%emt 0:00:44]} 39. Bc3 {[%emt 0:00:00]} h5 {[%emt 0:00:00]} 40. Kf2 {[%emt 0:00:00]} Nd8 {[%emt 0:01:11]} 41. Kf3 {[%emt 0:01:34]} Nb7 {[%emt 0:00:45]} 42. g4 {[%emt 0:00:44]} Nd6 {[%emt 0:00:16]} 43. Bd3 {[%emt 0:00:31]} c4 {[%emt 0:02:45]} 44. Be2 {[%emt 0:01:43]} hxg4+ {[%emt 0:00:20]} 45. hxg4 {[%emt 0:00:07]} Ke6 {[%emt 0:02:38]} 46. Bb4 {[%emt 0:02:34]} fxg4+ {[%emt 0:03:51]} 47. Kxg4 {[%emt 0:01:12]} Ne4 {[%emt 0:00:34]} 48. Bxc4+ {[%emt 0:00:13]} Kf6 {[%emt 0:01:24]} 49. Kf3 {[%emt 0:01:06]} Kf5 {[%emt 0:01:05]} 50. Bd3 {[%emt 0:02:47]} 0-1

[Event "36th Balaton Open A 2018"]
[Site "Balatonlelle"]
[Date "2018.06.13"]
[Round "2.9"]
[White "Rabovszky, Gyorgy"]
[Black "Haszon, David"]
[Result "0-1"]
[ECO "B23"]
[WhiteElo "1789"]
[BlackElo "2246"]
[Annotator "ChessBase"]
[PlyCount "50"]
[EventDate "2018.06.12"]
[EventType "swiss"]
[EventCountry "HUN"]
[SourceTitle "playchess.com"]
[Source "ChessBase"]
[SourceQuality "1"]
[TimeControl "40/5400+30:1800+30"]

1. e4 {[%emt 0:02:28]} c5 {[%emt 0:01:57]} 2. Nc3 {[%emt 0:00:17]} d6 {[%emt 0:02:48]} 3. f4 {[%emt 0:00:06]} g6 {[%emt 0:00:19]} 4. Bc4 {[%emt 0:00:22]} Bg7 {[%emt 0:00:57]} 5. Nf3 {[%emt 0:00:54]} Nc6 {[%emt 0:00:34]} 6. f5 {[%emt 0:01:01]} Ne5 {[%emt 0:01:37]} 7. Nxe5 {[%emt 0:00:11]} dxe5 {[%emt 0:01:11]} 8. fxg6 {[%emt 0:06:16]} hxg6 {[%emt 0:00:14]} 9. Qf3 {[%emt 0:02:21]} Nf6 {[%emt 0:02:25]} 10. d3 {[%emt 0:02:58]} Bg4 {[%emt 0:04:28]} 11. Qg3 {[%emt 0:00:43]} Qd6 {[%emt 0:02:26]} 12. Bb5+ {[%emt 0:01:02]} Bd7 {[%emt 0:00:34]} 13. Be3 {[%emt 0:07:53]} Bxb5 {[%emt 0:04:30]} 14. Nxb5 {[%emt 0:00:03]} Qb6 {[%emt 0:00:13]} 15. a4 {[%emt 0:00:45]} a6 {[%emt 0:00:49]} 16. Na3 {[%emt 0:00:16]} Qb4+ {[%emt 0:03:46]} 17. Ke2 {[%emt 0:04:36]} c4 {[%emt 0:09:31]} 18. Nxc4 {[%emt 0:04:16]} Nxe4 {[%emt 0:02:58]} 19. Qf3 {[%emt 0:01:26]} Nd6 {[%emt 0:02:07]} 20. c3 {[%emt 0:02:36]} Qb3 {[%emt 0:00:35]} 21. Rhf1 {[%emt 0:16:39]} O-O {[%emt 0:03:23]} 22. Ra3 {[%emt 0:06:06]} Qc2+ {[%emt 0:00:23]} 23. Nd2 {[%emt 0:00:40]} Rad8 {[%emt 0:03:43]} 24. c4 {[%emt 0:06:46]} e4 {[%emt 0:01:45]} 25. dxe4 {[%emt 0:06:52]} Nxc4 {[%emt 0:00:39]} 0-1

[Event "36th Balaton Open A 2018"]
[Site "Balatonlelle"]
[Date "2018.06.13"]
[Round "2.10"]
[White "Terbe, Julianna"]
[Black "Moskaleva, Arina"]
[Result "1-0"]
[ECO "D33"]
[WhiteElo "2242"]
[BlackElo "1582"]
[Annotator "ChessBase"]
[PlyCount "55"]
[EventDate "2018.06.12"]
[EventType "swiss"]
[EventCountry "HUN"]
[SourceTitle "playchess.com"]
[Source "ChessBase"]
[SourceQuality "1"]
[TimeControl "40/5400+30:1800+30"]

1. Nf3 {[%emt 0:00:03]} c5 {[%emt 0:01:03]} 2. c4 {[%emt 0:01:18]} Nf6 {[%emt 0:01:26]} 3. Nc3 {[%emt 0:00:07]} e6 {[%emt 0:03:58]} 4. g3 {[%emt 0:00:30]} d5 {[%emt 0:01:08]} 5. cxd5 {[%emt 0:00:08]} exd5 {[%emt 0:01:15]} 6. d4 {[%emt 0:00:07]} cxd4 {[%emt 0:01:52]} 7. Nxd4 {[%emt 0:00:20]} Nc6 {[%emt 0:01:57]} 8. Bg2 {[%emt 0:00:14]} Bc5 {[%emt 0:02:08]} 9. Nb3 {[%emt 0:02:07]} Bb4 {[%emt 0:00:42]} 10. O-O {[%emt 0:00:24]} Bxc3 {[%emt 0:02:37]} 11. bxc3 {[%emt 0:00:07]} O-O {[%emt 0:02:18]} 12. Be3 {[%emt 0:03:53]} Re8 {[%emt 0:03:19]} 13. Qc2 {[%emt 0:07:46]} Ne5 {[%emt 0:06:59]} 14. Rad1 {[%emt 0:04:36]} h6 {[%emt 0:02:39]} 15. Bd4 {[%emt 0:02:40]} Bg4 {[%emt 0:02:42]} 16. Rfe1 {[%emt 0:05:13]} a6 {[%emt 0:02:35]} 17. f3 {[%emt 0:07:37]} Bd7 {[%emt 0:01:54]} 18. Nc5 {[%emt 0:06:35]} Bc6 {[%emt 0:01:09]} 19. e4 {[%emt 0:00:31]} Qc7 {[%emt 0:02:53]} 20. f4 {[%emt 0:01:37]} Ned7 {[%emt 0:08:53]} 21. exd5 {[%emt 0:06:01]} Rxe1+ {[%emt 0:00:35]} 22. Rxe1 {[%emt 0:00:05]} Nxd5 {[%emt 0:01:07]} 23. Bxd5 {[%emt 0:00:35]} Bxd5 {[%emt 0:00:59]} 24. Re7 {[%emt 0:00:22]} Rd8 {[%emt 0:07:39]} 25. Qf5 {[%emt 0:00:42]} Qc6 {[%emt 0:00:47]} 26. Rxd7 {[%emt 0:01:17]} Re8 {[%emt 0:00:18]} 27. Qxd5 {[%emt 0:00:43]} Qxd5 {[%emt 0:00:32]} 28. Rxd5 {[%emt 0:00:06]} 1-0

[Event "36th Balaton Open A 2018"]
[Site "Balatonlelle"]
[Date "2018.06.14"]
[Round "3"]
[White "Haszon, David"]
[Black "Atkins, Rita"]
[Result "1-0"]
[ECO "C06"]
[WhiteElo "2246"]
[BlackElo "2071"]
[Annotator "NA"]
[PlyCount "81"]
[EventDate "2018.06.12"]
[EventType "swiss"]
[EventCountry "HUN"]
[SourceTitle "playchess.com"]
[Source "ChessBase"]
[SourceQuality "1"]
[TimeControl "40/5400+30:1800+30"]

1. d4 {[%emt 0:02:35]} d5 {[%emt 0:00:47]} 2. e4 {[%emt 0:00:27]} e6 {[%emt 0:00:51]} 3. Nd2 {[%emt 0:01:03]} Nf6 {[%emt 0:00:33]} 4. e5 {[%emt 0:00:54]} Nfd7 $14 {[%emt 0:00:05]} 5. Bd3 {[%emt 0:00:52]} c5 {[%emt 0:00:21]} 6. c3 {[%emt 0:00:09]} Nc6 {[%emt 0:00:13]} 7. Ne2 {[%emt 0:00:14]} cxd4 {[%emt 0:00:40]} 8. cxd4 {[%emt 0:00:08]} f6 {[%emt 0:00:16]} 9. exf6 {[%emt 0:00:12]} Nxf6 {[%emt 0:00:09]} 10. Nf3 {[%emt 0:00:23]} Bd6 {[%emt 0:00:34]} 11. O-O {[%emt 0:00:13]} Qc7 {[%emt 0:01:21]} 12. h3 {[%emt 0:00:35]} O-O {[%emt 0:02:19]} 13. Be3 {[%emt 0:00:55]} Bd7 {[%emt 0:02:21]} 14. Re1 {[%emt 0:01:09]} Be8 {[%emt 0:09:14]} 15. Rc1 {[%emt 0:01:23]} h6 {[%emt 0:15:15]} 16. a3 {[%emt 0:04:02]} Nh5 {[%emt 0:05:39]} 17. Bb1 {[%emt 0:09:00]} Rf6 {[%emt 0:11:06]} 18. b4 {[%emt 0:18:11]} a6 {[%emt 0:00:53]} 19. Ne5 {[%emt 0:03:46]} Bxe5 {[%emt 0:03:16]} 20. dxe5 {[%emt 0:00:28]} Qxe5 {[%emt 0:00:42]} 21. g4 {[%emt 0:09:36]} Rf3 {[%emt 0:07:07]} 22. Kg2 {[%emt 0:06:50]} Rxe3 {[%emt 0:06:33]} 23. fxe3 {[%emt 0:01:41]} Nf6 {[%emt 0:00:24]} 24. Nd4 {[%emt 0:01:22]} Ne4 {[%emt 0:05:40]} 25. Bxe4 {[%emt 0:01:38]} Qxe4+ {[%emt 0:02:05]} 26. Qf3 {[%emt 0:00:52]} Qe5 {[%emt 0:05:29]} 27. Qg3 {[%emt 0:04:59]} Qe4+ {[%emt 0:00:25]} 28. Nf3 {[%emt 0:00:18]} Bg6 {[%emt 0:02:44]} 29. Kh2 {[%emt 0:04:11]} Rf8 {[%emt 0:01:09]} 30. Nh4 {[%emt 0:01:01]} Bh7 {[%emt 0:09:13]} 31. Rf1 {[%emt 0:01:38]} Rxf1 {[%emt 0:05:32]} 32. Rxf1 {[%emt 0:00:11]} Qc2+ {[%emt 0:00:03]} 33. Rf2 {[%emt 0:00:22]} Qc1 {[%emt 0:00:08]} 34. g5 {[%emt 0:01:33]} Be4 {[%emt 0:00:25]} 35. Ng2 {[%emt 0:00:24]} hxg5 {[%emt 0:01:36]} 36. Qxg5 {[%emt 0:01:18]} d4 {[%emt 0:00:17]} 37. Qf4 {[%emt 0:05:24]} Bf5 {[%emt 0:02:51]} 38. e4 {[%emt 0:01:08]} Qxf4+ {[%emt 0:00:13]} 39. Nxf4 {[%emt 0:00:12]} Bxe4 {[%emt 0:00:31]} 40. Nxe6 {[%emt 0:00:00]} d3 {[%emt 0:00:54]} 41. Rf8+ {[%emt 0:00:44]} 1-0

[Event "36th Balaton Open A 2018"]
[Site "Balatonlelle"]
[Date "2018.06.14"]
[Round "3"]
[White "Suta, Andraz"]
[Black "Vukovic, Ivo"]
[Result "1/2-1/2"]
[ECO "C60"]
[WhiteElo "2239"]
[BlackElo "2031"]
[Annotator "NA"]
[PlyCount "115"]
[EventDate "2018.06.12"]
[EventType "swiss"]
[EventCountry "HUN"]
[SourceTitle "playchess.com"]
[Source "ChessBase"]
[SourceQuality "1"]
[TimeControl "40/5400+30:1800+30"]

1. e4 {[%emt 0:00:03]} e5 {[%emt 0:00:42]} 2. Nf3 {[%emt 0:00:06]} Nc6 {[%emt 0:00:12]} 3. Bb5 {[%emt 0:00:36]} Nge7 {[%emt 0:00:17]} 4. Nc3 {[%emt 0:03:04]} d6 {[%emt 0:00:54]} 5. d4 {[%emt 0:03:01]} exd4 {[%emt 0:04:01]} 6. Nxd4 {[%emt 0:00:21]} Bd7 {[%emt 0:00:12]} 7. Be3 {[%emt 0:03:05]} Nxd4 {[%emt 0:17:39]} 8. Bxd7+ {[%emt 0:00:19]} Qxd7 {[%emt 0:00:07]} 9. Qxd4 {[%emt 0:01:16]} Nc6 {[%emt 0:03:26]} 10. Qa4 {[%emt 0:02:04]} Be7 {[%emt 0:04:12]} 11. Nd5 {[%emt 0:03:41]} O-O {[%emt 0:07:04]} 12. Nxe7+ {[%emt 0:15:03]} Qxe7 {[%emt 0:01:29]} 13. O-O {[%emt 0:00:18]} Rab8 {[%emt 0:07:26]} 14. Rfe1 {[%emt 0:00:58]} Rfe8 {[%emt 0:02:20]} 15. Bd2 {[%emt 0:06:46]} a6 {[%emt 0:02:36]} 16. c4 {[%emt 0:14:30]} Qe6 {[%emt 0:05:39]} 17. Qc2 {[%emt 0:03:16]} f6 {[%emt 0:05:57]} 18. h3 {[%emt 0:02:41]} Qf7 {[%emt 0:02:01]} 19. Re3 {[%emt 0:01:39]} Re7 {[%emt 0:00:35]} 20. Rae1 {[%emt 0:02:50]} Rbe8 {[%emt 0:00:32]} 21. b3 {[%emt 0:00:11]} Kh8 {[%emt 0:06:59]} 22. a4 {[%emt 0:03:54]} a5 {[%emt 0:01:50]} 23. Bc3 {[%emt 0:07:25]} b6 {[%emt 0:00:46]} 24. Qd3 {[%emt 0:10:22]} Kg8 {[%emt 0:06:43]} 25. Kf1 {[%emt 0:04:12]} Nb8 {[%emt 0:02:19]} 26. Qd5 {[%emt 0:03:43]} Nd7 {[%emt 0:01:02]} 27. Bd4 {[%emt 0:00:52]} Kf8 {[%emt 0:03:24]} 28. Qf5 {[%emt 0:00:59]} Qg6 {[%emt 0:01:12]} 29. Qxg6 {[%emt 0:06:06]} hxg6 {[%emt 0:00:08]} 30. f3 {[%emt 0:00:05]} Kf7 {[%emt 0:00:18]} 31. Kf2 {[%emt 0:00:04]} Nb8 {[%emt 0:00:47]} 32. Bb2 {[%emt 0:00:53]} Na6 {[%emt 0:01:47]} 33. Ba3 {[%emt 0:00:11]} Nb8 {[%emt 0:00:22]} 34. Bb2 {[%emt 0:00:50]} Na6 {[%emt 0:00:16]} 35. R1e2 {[%emt 0:01:03]} Nb8 {[%emt 0:00:53]} 36. f4 {[%emt 0:00:35]} Nd7 {[%emt 0:00:16]} 37. e5 {[%emt 0:00:10]} Nc5 {[%emt 0:00:39]} 38. Kf3 {[%emt 0:00:48]} fxe5 {[%emt 0:00:34]} 39. fxe5 {[%emt 0:00:05]} dxe5 {[%emt 0:00:06]} 40. Rxe5 {[%emt 0:00:00]} Nxb3 {[%emt 0:02:25]} 41. Rxe7+ {[%emt 0:08:59]} Rxe7 {[%emt 0:00:14]} 42. Rxe7+ {[%emt 0:00:30]} Kxe7 {[%emt 0:00:04]} 43. Bxg7 {[%emt 0:01:04]} Nd2+ {[%emt 0:00:25]} 44. Ke2 {[%emt 0:01:39]} Nxc4 {[%emt 0:00:12]} 45. h4 {[%emt 0:01:18]} b5 {[%emt 0:02:41]} 46. axb5 {[%emt 0:01:20]} Nd6 {[%emt 0:00:06]} 47. Bc3 {[%emt 0:19:27]} Nxb5 {[%emt 0:00:09]} 48. Bxa5 {[%emt 0:00:09]} Nd4+ {[%emt 0:00:47]} 49. Kd3 {[%emt 0:00:07]} Nf5 {[%emt 0:00:10]} 50. Be1 {[%emt 0:00:24]} Ke6 {[%emt 0:00:10]} 51. g4 {[%emt 0:00:23]} Ne7 {[%emt 0:00:22]} 52. Bg3 {[%emt 0:00:48]} Nd5 {[%emt 0:00:19]} 53. h5 {[%emt 0:00:52]} gxh5 {[%emt 0:00:16]} 54. gxh5 {[%emt 0:00:06]} Kf5 {[%emt 0:00:24]} 55. h6 {[%emt 0:00:43]} Kg6 {[%emt 0:00:10]} 56. h7 {[%emt 0:00:23]} Kxh7 {[%emt 0:00:05]} 57. Bxc7 {[%emt 0:00:05]} Nxc7 58. Ke4 1/2-1/2

[Event "36th Balaton Open A 2018"]
[Site "Balatonlelle"]
[Date "2018.06.14"]
[Round "3"]
[White "Ronce, Nathan"]
[Black "Psaila, Clarence"]
[Result "1-0"]
[ECO "C00"]
[WhiteElo "2210"]
[BlackElo "1983"]
[Annotator "NA"]
[PlyCount "51"]
[EventDate "2018.06.12"]
[EventType "swiss"]
[EventCountry "HUN"]
[SourceTitle "playchess.com"]
[Source "ChessBase"]
[SourceQuality "1"]
[TimeControl "40/5400+30:1800+30"]

1. e4 {[%emt 0:00:02]} e6 {[%emt 0:00:31]} 2. d4 {[%emt 0:00:07]} d5 {[%emt 0:00:03]} 3. Bd3 {[%emt 0:00:04]} dxe4 {[%emt 0:00:11]} 4. Bxe4 {[%emt 0:00:06]} Nf6 {[%emt 0:00:04]} 5. Bf3 {[%emt 0:00:04]} Nbd7 {[%emt 0:00:12]} 6. Nc3 {[%emt 0:07:27]} e5 {[%emt 0:03:16]} 7. Nge2 {[%emt 0:03:12]} Bd6 {[%emt 0:01:43]} 8. O-O $11 {[%emt 0:08:01] LiveBook: 4 Games} O-O {[%emt 0:02:41]} 9. Ng3 {[%emt 0:05:31]} exd4 {[%emt 0:03:30]} 10. Qxd4 {[%emt 0:02:57]} Ne5 {[%emt 0:04:22]} 11. Be2 {[%emt 0:06:54]} Bg4 {[%emt 0:11:49]} 12. Bg5 {[%emt 0:10:10]} h6 {[%emt 0:02:36]} 13. Bxg4 {[%emt 0:16:50]} Nexg4 {[%emt 0:07:17]} 14. Bxf6 {[%emt 0:00:43]} Nxf6 {[%emt 0:00:07]} 15. Nf5 {[%emt 0:01:41]} g6 {[%emt 0:10:22]} 16. Nd5 {[%emt 0:09:23]} gxf5 {[%emt 0:08:00]} 17. Nxf6+ {[%emt 0:01:10]} Kh8 {[%emt 0:00:25]} 18. Rad1 {[%emt 0:02:29]} Be7 {[%emt 0:03:32]} 19. Nd7+ {[%emt 0:02:56]} f6 {[%emt 0:02:17]} 20. Nxf8 {[%emt 0:04:10]} Qxf8 {[%emt 0:00:17]} 21. Qf4 {[%emt 0:00:33]} Bd6 {[%emt 0:00:47]} 22. Qxf5 {[%emt 0:00:06]} Qg7 {[%emt 0:01:05]} 23. g3 {[%emt 0:00:45]} Rg8 {[%emt 0:00:29]} 24. Rfe1 {[%emt 0:00:32]} Qf7 {[%emt 0:00:27]} 25. Re6 {[%emt 0:00:56]} Be5 {[%emt 0:00:54]} 26. Rxe5 1-0

[Event "36th Balaton Open A 2018"]
[Site "Balatonlelle"]
[Date "2018.06.14"]
[Round "3"]
[White "Nagy, Ervin Dr"]
[Black "Schmuck, Corentin"]
[Result "1-0"]
[ECO "C02"]
[WhiteElo "2172"]
[BlackElo "1925"]
[Annotator "NA"]
[PlyCount "81"]
[EventDate "2018.06.12"]
[EventType "swiss"]
[EventCountry "HUN"]
[SourceTitle "playchess.com"]
[Source "ChessBase"]
[SourceQuality "1"]
[TimeControl "40/5400+30:1800+30"]

1. e4 {[%emt 0:02:49]} e6 {[%emt 0:00:45]} 2. d4 {[%emt 0:00:13]} d5 {[%emt 0:00:09]} 3. e5 {[%emt 0:00:14]} c5 {[%emt 0:00:16]} 4. c3 {[%emt 0:00:12]} Qb6 {[%emt 0:00:17]} 5. Nf3 {[%emt 0:00:22]} Nc6 {[%emt 0:00:27]} 6. a3 {[%emt 0:01:02]} c4 {[%emt 0:05:00]} 7. g3 {[%emt 0:01:21]} Na5 {[%emt 0:00:14]} 8. Nbd2 {[%emt 0:00:42]} Bd7 {[%emt 0:00:16]} 9. Bg2 {[%emt 0:00:56]} Ne7 {[%emt 0:03:09]} 10. O-O {[%emt 0:00:19]} h6 {[%emt 0:03:25]} 11. h4 {[%emt 0:02:17]} O-O-O {[%emt 0:01:50]} 12. Re1 {[%emt 0:02:09]} Kb8 {[%emt 0:02:32]} 13. Nf1 {[%emt 0:02:41]} Nb3 {[%emt 0:00:49]} 14. Rb1 {[%emt 0:00:32]} Nc8 {[%emt 0:05:04]} 15. Bf4 {[%emt 0:02:33]} Be7 {[%emt 0:01:08]} 16. Ne3 {[%emt 0:07:49]} Rdg8 {[%emt 0:11:33]} 17. Nxd5 {[%emt 0:01:36]} Qb5 {[%emt 0:06:54]} 18. Nxe7 {[%emt 0:02:22]} Nxe7 {[%emt 0:00:05]} 19. Qe2 {[%emt 0:14:27]} Bc6 {[%emt 0:02:10]} 20. h5 {[%emt 0:10:30]} Nd5 {[%emt 0:07:10]} 21. Be3 {[%emt 0:00:38]} g6 {[%emt 0:02:16]} 22. Kh2 {[%emt 0:04:22]} gxh5 {[%emt 0:01:46]} 23. Rh1 {[%emt 0:00:35]} Rg4 {[%emt 0:07:29]} 24. Rbe1 {[%emt 0:05:20]} Nxe3 {[%emt 0:02:03]} 25. fxe3 {[%emt 0:04:03]} Rhg8 {[%emt 0:02:58]} 26. Rhg1 {[%emt 0:02:36]} Rxg3 {[%emt 0:03:33]} 27. e4 {[%emt 0:05:07]} R3g4 {[%emt 0:05:44]} 28. Bh3 {[%emt 0:00:37]} Rxg1 {[%emt 0:01:56]} 29. Nxg1 {[%emt 0:00:32]} Na5 {[%emt 0:02:48]} 30. Rf1 {[%emt 0:01:14]} Be8 {[%emt 0:03:50]} 31. Rf2 {[%emt 0:02:07]} Nc6 {[%emt 0:07:19]} 32. Qxh5 {[%emt 0:01:26]} Qb3 {[%emt 0:02:09]} 33. Qe2 {[%emt 0:02:30]} Ne7 {[%emt 0:00:45]} 34. Bf1 {[%emt 0:01:35]} Rg7 {[%emt 0:03:57]} 35. Qxc4 {[%emt 0:11:41]} Qd1 {[%emt 0:00:46]} 36. Qe2 {[%emt 0:00:19]} Qc1 {[%emt 0:00:30]} 37. Nh3 {[%emt 0:00:52]} Bc6 {[%emt 0:00:16]} 38. Bg2 {[%emt 0:00:42]} b5 {[%emt 0:01:26]} 39. d5 {[%emt 0:03:25]} exd5 {[%emt 0:01:02]} 40. Rf1 {[%emt 0:00:00]} Qxf1 {[%emt 0:02:02]} 41. Qxf1 {[%emt 0:01:26]} 1-0

[Event "36th Balaton Open A 2018"]
[Site "Balatonlelle"]
[Date "2018.06.14"]
[Round "3"]
[White "Boguszlavszkij, Jevgenyij"]
[Black "Nagy, Daniel"]
[Result "0-1"]
[ECO "B00"]
[WhiteElo "2170"]
[BlackElo "2312"]
[Annotator "NA"]
[PlyCount "94"]
[EventDate "2018.06.12"]
[EventType "swiss"]
[EventCountry "HUN"]
[SourceTitle "playchess.com"]
[Source "ChessBase"]
[SourceQuality "1"]
[TimeControl "40/5400+30:1800+30"]

1. e4 {[%emt 0:06:16]} d6 {[%emt 0:00:36]} 2. g3 {[%emt 0:00:22]} e5 {[%emt 0:00:06]} 3. Bg2 {[%emt 0:00:08]} h5 {[%emt 0:00:10]} 4. d4 {[%emt 0:02:16]} exd4 {[%emt 0:03:38]} 5. Nf3 {[%emt 0:00:33]} Bg4 {[%emt 0:02:45]} 6. h3 {[%emt 0:01:03]} Bxf3 {[%emt 0:00:33]} 7. Bxf3 {[%emt 0:00:19]} h4 {[%emt 0:02:11]} 8. Qxd4 {[%emt 0:02:01]} Nc6 {[%emt 0:01:57]} 9. Qa4 {[%emt 0:08:50]} Qf6 {[%emt 0:03:27]} 10. Bg2 {[%emt 0:00:55]} hxg3 {[%emt 0:11:11]} 11. O-O {[%emt 0:05:14]} (11. fxg3 $11 {keeps the balance.} O-O-O 12. Nc3) 11... gxf2+ {[%emt 0:08:53]} 12. Rxf2 {[%emt 0:00:23]} Qg6 $17 {[%emt 0:00:06]} 13. Nc3 {[%emt 0:01:47]} Be7 {[%emt 0:21:39]} 14. Nd5 {[%emt 0:04:14]} O-O-O {[%emt 0:09:17]} 15. Be3 {[%emt 0:04:47]} a6 {[%emt 0:08:08]} 16. Raf1 {[%emt 0:07:07]} Bf6 {[%emt 0:05:55]} 17. Qc4 {[%emt 0:11:02]} Rd7 {[%emt 0:02:47]} 18. c3 {[%emt 0:04:28]} Ne5 {[%emt 0:02:18]} 19. Qe2 {[%emt 0:00:30]} Bh4 {[%emt 0:02:16]} 20. Rf5 {[%emt 0:02:13]} Ne7 {[%emt 0:00:56]} 21. Nf4 {[%emt 0:02:00]} Qg3 {[%emt 0:03:03]} 22. Bf2 {[%emt 0:05:01]} Nxf5 {[%emt 0:00:56]} 23. Bxg3 {[%emt 0:00:10]} Nxg3 {[%emt 0:00:04]} 24. Qe3 {[%emt 0:00:36]} Nxf1 {[%emt 0:00:42]} 25. Qa7 {[%emt 0:00:43]} Nc6 {[%emt 0:00:28]} 26. Qa8+ {[%emt 0:00:36]} Nb8 {[%emt 0:00:01]} 27. Kxf1 {[%emt 0:03:01]} c6 {[%emt 0:01:35]} 28. Qa7 {[%emt 0:03:50]} Bf6 {[%emt 0:01:32]} 29. Qb6 {[%emt 0:02:39]} Re7 {[%emt 0:00:49]} 30. Nd3 {[%emt 0:04:05]} Nd7 {[%emt 0:02:15]} 31. Qb4 {[%emt 0:00:30]} Ne5 {[%emt 0:00:20]} 32. Nxe5 {[%emt 0:04:38]} Bxe5 {[%emt 0:01:00]} 33. Kf2 {[%emt 0:00:37]} Re6 {[%emt 0:00:38]} 34. Bf3 {[%emt 0:01:33]} Kb8 {[%emt 0:02:04]} 35. Bg4 {[%emt 0:01:39]} Re7 {[%emt 0:01:14]} 36. Qb6 {[%emt 0:01:54]} g6 {[%emt 0:00:21]} 37. a4 {[%emt 0:00:33]} f5 {[%emt 0:02:18]} 38. exf5 {[%emt 0:00:15]} gxf5 {[%emt 0:00:01]} 39. Bf3 {[%emt 0:00:18]} d5 {[%emt 0:00:44]} 40. b4 {[%emt 0:00:00]} Bc7 {[%emt 0:01:03]} 41. Qc5 {[%emt 0:01:10]} Re6 {[%emt 0:03:22]} 42. b5 {[%emt 0:01:02]} axb5 {[%emt 0:01:16]} 43. axb5 {[%emt 0:00:07]} Rg8 {[%emt 0:04:13]} 44. Be2 {[%emt 0:03:00]} b6 {[%emt 0:09:24]} 45. Qd4 {[%emt 0:00:57]} Re4 {[%emt 0:01:05]} 46. Qd1 {[%emt 0:05:21]} Bg3+ {[%emt 0:01:53]} 47. Kf3 {[%emt 0:01:46]} Bh4 {[%emt 0:00:29]} 0-1

[Event "36th Balaton Open A 2018"]
[Site "Balatonlelle"]
[Date "2018.06.14"]
[Round "3"]
[White "Gaal, Ede"]
[Black "Kincs, Imre"]
[Result "1/2-1/2"]
[ECO "C68"]
[WhiteElo "2141"]
[BlackElo "2210"]
[Annotator "NA"]
[PlyCount "37"]
[EventDate "2018.06.12"]
[EventType "swiss"]
[EventCountry "HUN"]
[SourceTitle "playchess.com"]
[Source "ChessBase"]
[SourceQuality "1"]
[TimeControl "40/5400+30:1800+30"]

1. e4 {[%emt 0:00:18]} e5 {[%emt 0:01:17]} 2. Nf3 {[%emt 0:00:53]} Nc6 {[%emt 0:00:07]} 3. Bb5 {[%emt 0:00:04]} a6 {[%emt 0:00:11]} 4. Bxc6 {[%emt 0:00:37]} dxc6 {[%emt 0:00:07]} 5. O-O {[%emt 0:00:07]} Bg4 {[%emt 0:01:54]} 6. h3 {[%emt 0:00:08]} h5 {[%emt 0:00:48]} 7. d3 {[%emt 0:00:09]} Bc5 {[%emt 0:00:12]} 8. Nbd2 {[%emt 0:04:24]} Qf6 {[%emt 0:00:19]} 9. Nc4 {[%emt 0:00:54]} Bxf3 {[%emt 0:00:32]} 10. Qxf3 {[%emt 0:00:10]} Qxf3 {[%emt 0:00:41]} 11. gxf3 {[%emt 0:00:07]} f6 {[%emt 0:00:03]} 12. f4 exf4 {[%emt 0:00:12]} 13. Bxf4 {[%emt 0:00:35]} O-O-O {[%emt 0:00:08]} 14. Kg2 {[%emt 0:03:32]} Ne7 {[%emt 0:00:12]} 15. Be3 {[%emt 0:01:11]} Bxe3 {[%emt 0:00:30]} 16. fxe3 {[%emt 0:09:58]} c5 {[%emt 0:00:24]} 17. Kf3 {[%emt 0:00:57]} Nc6 {[%emt 0:01:53]} 18. Ke2 {[%emt 0:01:08]} b6 {[%emt 0:02:41]} 19. Rf5 {[%emt 0:01:14]} 1/2-1/2